bitfinex/quotes_BTCUSD_20220204
["timestamp","ask_amount","ask_price","bid_price","bid_amount"]
[1643937956245,0.06839502,37185.0,37183.0,0.05]
[1643937956445,0.06839502,37185.0,37181.0,0.05]
[1643937956646,0.06763728,37185.0,37181.0,0.05]
[1643937957047,0.06839502,37185.0,37181.0,0.05]
[1643937957247,0.06839502,37185.0,37179.0,0.05]
[1643937957248,0.60563562,37184.0,37179.0,0.05]
[1643937957450,0.06727077,37183.0,37179.0,0.05]
[1643937957647,0.13454223,37182.0,37179.0,0.05]
[1643937957846,0.06727077,37183.0,37179.0,0.05]
[1643937958248,0.00070661,37182.0,37179.0,0.05]
[1643937959092,0.35548524,37183.0,37179.0,0.05]
[1643937959093,0.82929034,37180.0,37179.0,0.05]
[1643937959295,0.22929034,37180.0,37179.0,0.05]
[1643937959495,0.22929034,37180.0,37179.0,0.117261]
[1643937959693,0.22929034,37180.0,37179.0,0.05]
[1643937959995,0.00070661,37182.0,37179.0,0.05]
[1643937960393,0.06726215,37183.0,37179.0,0.05]
[1643937960594,0.00070661,37182.0,37179.0,0.05]
[1643937960894,0.06726215,37183.0,37179.0,0.05]
[1643937961193,0.25821114,37181.0,37179.0,0.05]
[1643937961795,0.0672677,37181.0,37179.0,0.05]
[1643937962194,0.28822309,37183.0,37179.0,0.117262]
[1643937962446,0.28859559,37184.0,37182.0,0.05]
[1643937962649,0.28822309,37184.0,37182.0,0.05]
[1643937962848,0.28822309,37184.0,37182.0,0.117254]
[1643937963248,0.0003725,37184.0,37182.0,0.117254]
[1643937963646,0.00108978,37185.0,37182.0,0.117254]
[1643937963847,0.0003725,37187.0,37184.0,1.25]
[1643937964047,0.0003725,37187.0,37186.0,0.05]
[1643937964246,0.0003725,37188.0,37186.0,0.05]
[1643937964447,0.352615,37187.0,37186.0,0.05]
[1643937964846,0.0003725,37188.0,37184.0,0.117248]
[1643937965045,0.0003725,37188.0,37186.0,0.067247]
[1643937965248,0.16326637,37189.0,37187.0,0.05]
[1643937965448,0.35333227,37188.0,37186.0,0.067247]
[1643937965647,0.00071727,37188.0,37186.0,0.117247]
[1643937965847,0.00108977,37188.0,37186.0,0.117247]
[1643937966292,0.0003725,37188.0,37186.0,0.117247]
[1643937966493,0.16360861,37189.0,37186.0,0.117247]
[1643937966994,0.16360861,37189.0,37187.0,0.05]
[1643937967292,0.58347396,37189.0,37187.0,0.05]
[1643937967492,0.58313172,37189.0,37187.0,0.05]
[1643937968091,0.58313172,37189.0,37184.0,0.184496]
[1643937968292,0.23051672,37189.0,37184.0,0.184496]
[1643937968493,0.23051672,37189.0,37186.0,0.05]
[1643937968693,0.51889748,37189.0,37186.0,0.05]
[1643937968893,0.352615,37188.0,37186.0,0.05]
[1643937969093,0.3529875,37188.0,37186.0,0.05]
[1643937969394,0.64136826,37188.0,37184.0,0.05]
[1643937969592,0.0672557,37187.0,37184.0,0.05]
[1643937969852,0.0676282,37187.0,37184.0,0.05]
[1643937970343,0.06834351,37187.0,37184.0,0.05]
[1643937971143,0.0676282,37187.0,37184.0,0.05]
[1643937971345,0.06834351,37187.0,37184.0,0.05]
[1643937971544,0.00108781,37187.0,37186.0,0.05]
[1643937971746,1.05333031,37187.0,37186.0,0.05]
[1643937972345,1.052615,37187.0,37184.0,0.05]
[1643937972546,0.98203207,37187.0,37184.0,0.05]
[1643937972745,0.69365131,37187.0,37184.0,0.05]
[1643937972950,0.2238118,37186.0,37182.0,0.067258]
[1643937973157,0.2238118,37186.0,37180.0,0.1216]
[1643937973158,0.86480756,37186.0,37180.0,0.1216]
[1643937973448,1.15,37181.0,37178.0,0.00063827]
[1643937973695,1.15,37181.0,37178.0,0.00063784]
[1643937974698,1.15,37181.0,37177.0,0.05]
[1643937974897,1.15,37181.0,37178.0,0.00063785]
[1643937975098,0.28838076,37183.0,37178.0,0.00063785]
[1643937975299,0.0672659,37182.0,37178.0,0.06790085]
[1643937975501,0.28838076,37183.0,37178.0,0.06790085]
[1643937975903,0.28838076,37183.0,37178.0,0.067263]
[1643937976199,0.28838076,37183.0,37178.0,0.06790094]
[1643937976403,0.00071521,37184.0,37178.0,0.37390862]
[1643937976404,0.28909597,37184.0,37178.0,0.37390862]
[1643937976603,0.00071521,37184.0,37178.0,0.36824309]
[1643937976800,0.00071521,37184.0,37179.0,0.05]
[1643937977001,0.00071521,37184.0,37180.0,0.36790875]
[1643937977202,0.28838076,37186.0,37180.0,0.134504]
[1643937977448,0.34580067,37188.0,37183.0,0.6]
[1643937977449,0.00071523,37184.0,37183.0,0.6]
[1643937977647,0.00071523,37184.0,37183.0,0.65]
[1643937978252,0.00071523,37184.0,37183.0,0.06725]
[1643937978447,0.28838076,37188.0,37183.0,0.06725]
[1643937978648,0.00071522,37185.0,37184.0,0.06725]
[1643937979650,0.18445874,37189.0,37185.0,0.067247]
[1643937979850,0.00071522,37186.0,37185.0,0.067247]
[1643937980654,0.00071522,37186.0,37185.0,1.117247]
[1643937980856,0.16289387,37189.0,37185.0,1.117247]
[1643937981092,0.00071521,37187.0,37185.0,1.067247]
[1643937981291,0.00071521,37187.0,37185.0,0.067247]
[1643937981894,0.16289387,37189.0,37185.0,0.067247]
[1643937982194,0.00071521,37188.0,37187.0,0.05]
[1643937982592,0.00071521,37188.0,37187.0,0.33269209]
[1643937983093,0.16289387,37189.0,37187.0,0.33269209]
[1643937983294,0.352615,37188.0,37187.0,0.33269209]
[1643937983496,0.352615,37188.0,37187.0,0.28269209]
[1643937983695,0.64105711,37188.0,37187.0,0.28269209]
[1643937983894,0.64105711,37188.0,37187.0,0.33269209]
[1643937985245,0.64105711,37188.0,37185.0,0.05]
[1643937985446,0.28844211,37188.0,37183.0,0.05]
[1643937985846,0.28915731,37188.0,37183.0,0.05]
[1643937986445,0.28915731,37188.0,37184.0,0.30400738]
[1643937986846,0.28844211,37188.0,37184.0,0.30400738]
[1643937987046,0.28915732,37188.0,37184.0,0.30400738]
[1643937987246,0.06725549,37187.0,37184.0,0.30400738]
[1643937987845,0.06762543,37187.0,37184.0,0.30400738]
[1643937988246,0.06834064,37187.0,37184.0,0.30400738]
[1643937988449,0.06834064,37187.0,37184.0,0.35400738]
[1643937988697,0.06834064,37187.0,37184.0,0.30400738]
[1643937989094,0.06762543,37187.0,37184.0,0.30400738]
[1643937989499,0.06834064,37187.0,37184.0,0.30400738]
[1643937990099,0.06834064,37187.0,37184.0,0.35400738]
[1643937990299,0.06762543,37187.0,37184.0,0.35400738]
[1643937990498,0.06834064,37187.0,37184.0,0.35400738]
[1643937990700,0.06834064,37187.0,37184.0,0.30400738]
[1643937991502,0.06762543,37187.0,37184.0,0.30400738]
[1643937991702,0.06834064,37187.0,37184.0,0.30400738]
[1643937992103,0.06834064,37187.0,37184.0,0.35400738]
[1643937992542,0.00108515,37187.0,37184.0,0.35400738]
[1643937992743,0.00036994,37187.0,37184.0,0.35400738]
[1643937992942,0.00071521,37187.0,37184.0,0.30400738]
[1643937993142,0.00071521,37187.0,37185.0,0.05]
[1643937993342,0.00108515,37187.0,37185.0,0.05]
[1643937993946,0.00036994,37187.0,37185.0,0.05]
[1643937994143,0.28952726,37188.0,37185.0,0.05]
[1643937995143,0.28881205,37188.0,37185.0,0.05]
[1643937995343,0.28952725,37188.0,37185.0,0.05]
[1643937995745,0.64214225,37188.0,37187.0,0.05]
[1643937995946,0.64177231,37188.0,37187.0,0.05]
[1643937996394,1.44105711,37188.0,37187.0,0.04988815]
[1643937996598,1.44116896,37188.0,37187.0,0.04988815]
[1643937996795,1.002615,37187.0,37186.0,0.04988815]
[1643937996996,1.00298494,37187.0,37186.0,0.04988815]
[1643937997195,1.00298494,37187.0,37185.0,0.04988815]
[1643937997395,0.71762208,37187.0,37185.0,0.04988815]
[1643937997596,1.35011185,37186.0,37183.0,0.04988815]
[1643937997997,0.06762208,37187.0,37182.0,0.184506]
[1643937998496,0.06762208,37187.0,37182.0,0.43011919]
[1643937998898,0.00036994,37187.0,37182.0,0.49736919]
[1643937999100,0.28844211,37188.0,37182.0,0.44736919]
[1643937999101,0.00071521,37186.0,37182.0,0.44736919]
[1643937999299,0.00071521,37186.0,37185.0,0.46655174]
[1643937999699,0.00071521,37186.0,37185.0,0.39930474]
[1643937999947,0.00036994,37187.0,37185.0,0.39930474]
[1643938000149,0.06796708,37187.0,37185.0,0.05]
[1643938000547,0.06833702,37187.0,37185.0,0.05]
[1643938001151,0.06762181,37187.0,37185.0,0.05]
[1643938002251,0.06762181,37187.0,37183.0,0.34785892]
[1643938003795,0.06833702,37187.0,37183.0,0.34785892]
[1643938004197,0.35677913,37187.0,37185.0,0.05]
[1643938004399,0.00071521,37187.0,37185.0,0.05]
[1643938004798,0.28881205,37187.0,37185.0,0.05]
[1643938004996,0.28881205,37187.0,37183.0,0.29785892]
[1643938005198,0.28844211,37187.0,37184.0,0.05]
[1643938005496,0.28844211,37187.0,37184.0,0.134499]
[1643938005697,0.28881205,37187.0,37182.0,0.31286519]
[1643938005896,0.28881205,37187.0,37185.0,0.05]
[1643938006096,0.00071521,37186.0,37182.0,0.36286519]
[1643938007198,0.06725364,37186.0,37182.0,0.43011919]
[1643938007449,0.06796886,37186.0,37182.0,0.43012019]
[1643938008447,0.06725364,37186.0,37182.0,0.43012019]
[1643938008647,0.06796886,37186.0,37182.0,0.43012019]
[1643938009652,0.06725364,37186.0,37182.0,0.43012019]
[1643938009848,0.06796886,37186.0,37182.0,0.43012019]
[1643938010848,0.00036994,37187.0,37185.0,0.05]
[1643938011114,0.00071522,37186.0,37185.0,0.05]
[1643938011313,0.00071522,37186.0,37185.0,0.75]
[1643938011513,0.00071522,37186.0,37183.0,0.06725]
[1643938011914,0.00036994,37187.0,37183.0,0.06725]
[1643938012114,0.00071521,37186.0,37183.0,0.06725]
[1643938012315,0.00071521,37186.0,37184.0,0.05]
[1643938012514,0.06796772,37186.0,37184.0,0.05]
[1643938013313,0.06725251,37186.0,37184.0,0.05]
[1643938015551,0.06725251,37186.0,37185.0,0.05]
[1643938017752,0.06725251,37186.0,37184.0,0.05]
[1643938017952,0.06725251,37186.0,37182.0,0.36286619]
[1643938019496,0.06796773,37186.0,37182.0,0.36286619]
[1643938020102,0.06796773,37186.0,37182.0,0.59375077]
[1643938020299,0.04065458,37186.0,37182.0,0.67825377]
[1643938020498,0.04065458,37186.0,37183.0,0.067251]
[1643938020697,0.0413698,37186.0,37185.0,0.05]
[1643938021302,0.0413698,37186.0,37185.0,0.5]
[1643938021503,0.04065458,37186.0,37185.0,0.5]
[1643938021803,0.04065458,37186.0,37184.0,0.067249]
[1643938022001,0.32909669,37186.0,37183.0,0.117251]
[1643938022447,0.32909669,37186.0,37183.0,0.067251]
[1643938022448,0.39634942,37186.0,37183.0,0.067251]
[1643938022948,0.39706463,37186.0,37183.0,0.067251]
[1643938023950,0.39634942,37186.0,37182.0,0.47649777]
[1643938024149,0.39706463,37186.0,37182.0,0.47649777]
[1643938025151,0.39634942,37186.0,37182.0,0.47649777]
[1643938025349,0.39706464,37186.0,37182.0,0.47649777]
[1643938025550,0.39706464,37186.0,37182.0,0.54375277]
[1643938025950,0.39706464,37186.0,37182.0,0.47649777]
[1643938027104,0.39706464,37186.0,37183.0,0.067253]
[1643938027404,0.10862253,37186.0,37184.0,0.05]
[1643938027605,0.00036994,37188.0,37185.0,2.35]
[1643938027606,0.28881205,37188.0,37185.0,2.35]
[1643938027807,0.25096802,37189.0,37187.0,2.3]
[1643938027808,0.0208296,37189.0,37187.0,2.3]
[1643938028004,0.5786,37197.0,37190.0,0.02852031]
[1643938028005,0.28851825,37191.0,37190.0,0.02852031]
[1643938028207,0.28851825,37192.0,37190.0,1.55]
[1643938028506,0.4037146,37196.0,37194.0,0.2786585]
[1643938028507,0.28851825,37196.0,37194.0,0.2786585]
[1643938028805,0.42613762,37197.0,37194.0,0.56769443]
[1643938029005,0.42613762,37197.0,37194.0,0.06769443]
[1643938029006,0.28851825,37196.0,37194.0,0.06769443]
[1643938029204,0.28851825,37196.0,37192.0,0.3370571]
[1643938029605,0.47685278,37197.0,37192.0,0.3370571]
[1643938029880,0.47685278,37197.0,37193.0,0.30202043]
[1643938030068,0.47613762,37197.0,37193.0,0.30202043]
[1643938030268,0.00071516,37196.0,37193.0,0.30202043]
[1643938030668,0.30463049,37196.0,37193.0,0.30202043]
[1643938031070,0.30463049,37196.0,37193.0,0.067228]
[1643938031270,0.05,37194.0,37191.0,0.134455]
[1643938031569,0.05,37193.0,37192.0,0.24170286]
[1643938033271,0.00071517,37194.0,37192.0,0.24170286]
[1643938033472,0.05,37193.0,37192.0,0.24170286]
[1643938033899,0.06794978,37195.0,37190.0,0.25192739]
[1643938034101,0.05,37191.0,37190.0,0.25192739]
[1643938034902,0.00071518,37192.0,37190.0,0.31915839]
[1643938035201,0.00071518,37192.0,37191.0,0.25555763]
[1643938035901,0.30391533,37196.0,37191.0,0.25555763]
[1643938036102,0.00071518,37193.0,37192.0,0.067232]
[1643938036703,0.00071518,37193.0,37192.0,0.31418331]
[1643938036903,0.00071518,37193.0,37192.0,0.067232]
[1643938037103,0.30391533,37196.0,37192.0,0.31205895]
[1643938037352,0.00071517,37194.0,37192.0,0.31205895]
[1643938037552,0.00071517,37194.0,37193.0,0.24309488]
[1643938038055,0.00071517,37194.0,37193.0,0.23621586]
[1643938038253,0.00071517,37194.0,37192.0,0.067232]
[1643938038453,0.37114741,37196.0,37192.0,0.067232]
[1643938038653,0.00071517,37195.0,37192.0,0.067232]
[1643938039153,0.00071517,37195.0,37193.0,0.23874704]
[1643938039653,0.13761937,37197.0,37193.0,0.23874704]
[1643938039854,0.13761937,37197.0,37192.0,0.067232]
[1643938039855,0.00071517,37196.0,37192.0,0.067232]
[1643938040256,0.00071517,37196.0,37193.0,0.24194766]
[1643938040455,0.00071517,37196.0,37192.0,0.067232]
[1643938040456,0.05071517,37196.0,37192.0,0.067232]
[1643938040658,0.05,37194.0,37190.0,0.33185043]
[1643938041102,0.05,37191.0,37190.0,0.33185043]
[1643938041503,0.05,37195.0,37190.0,0.33185043]
[1643938041903,0.13761937,37197.0,37190.0,0.33185043]
[1643938041904,0.05,37194.0,37190.0,0.33185043]
[1643938042106,0.05071517,37194.0,37190.0,0.33185043]
[1643938043307,0.05,37194.0,37190.0,0.33185043]
[1643938043505,0.05071518,37194.0,37190.0,0.33185043]
[1643938043905,0.05108506,37194.0,37190.0,0.33185043]
[1643938044306,0.05036988,37194.0,37190.0,0.33185043]
[1643938044505,0.05108506,37194.0,37190.0,0.33185043]
[1643938045655,0.05036988,37194.0,37190.0,0.33185043]
[1643938045858,0.05108506,37194.0,37190.0,0.33185043]
[1643938046255,0.05071518,37194.0,37190.0,0.33185043]
[1643938046857,0.05,37194.0,37190.0,0.33185043]
[1643938047158,0.05071518,37194.0,37190.0,0.33185043]
[1643938047958,0.00036988,37196.0,37190.0,0.33185043]
[1643938048258,0.05,37191.0,37190.0,0.33185043]
[1643938048901,0.00036988,37193.0,37190.0,0.33185043]
[1643938049402,0.05,37191.0,37190.0,0.33185043]
[1643938049903,0.05,37191.0,37190.0,0.83185043]
[1643938050303,0.05,37191.0,37190.0,0.067234]
[1643938050506,0.05,37191.0,37188.0,0.134463]
[1643938050706,0.05,37191.0,37185.0,0.0048]
[1643938050707,0.05,37189.0,37185.0,0.0048]
[1643938050904,0.05,37186.0,37181.0,1.20688458]
[1643938051107,0.23675805,37192.0,37179.0,0.0181475]
[1643938051108,0.05,37182.0,37179.0,0.0181475]
[1643938051303,0.23712793,37192.0,37179.0,0.30237685]
[1643938051304,0.23087843,37184.0,37179.0,0.30237685]
[1643938051504,0.23077134,37184.0,37179.0,0.68576736]
[1643938051710,0.05,37180.0,37179.0,0.40153801]
[1643938052003,0.05,37180.0,37179.0,1.30153801]
[1643938052451,0.05,37180.0,37179.0,0.40153801]
[1643938052851,0.05,37180.0,37179.0,1.10153801]
[1643938053249,0.05,37180.0,37179.0,1.08339051]
[1643938053852,0.05,37180.0,37179.0,1.53339051]
[1643938054452,0.05,37180.0,37179.0,1.08339051]
[1643938055051,0.05,37182.0,37180.0,0.067252]
[1643938057199,0.05,37182.0,37181.0,0.79580709]
[1643938057400,0.05,37182.0,37181.0,0.24580709]
[1643938058099,0.26688978,37194.0,37181.0,0.24580709]
[1643938058301,0.28053873,37189.0,37182.0,0.067251]
[1643938058500,0.352615,37188.0,37182.0,0.067251]
[1643938058699,0.352615,37189.0,37182.0,0.067251]
[1643938058902,0.519865,37189.0,37182.0,0.067251]
[1643938059101,0.220833,37188.0,37182.0,0.067251]
[1643938060753,0.13451257,37187.0,37181.0,0.24599952]
[1643938061150,0.13451257,37187.0,37181.0,0.24580709]
[1643938061351,0.00071575,37186.0,37181.0,0.24644854]
[1643938062352,0.06725539,37185.0,37181.0,0.24580709]
[1643938062555,0.06725539,37185.0,37181.0,0.24644774]
[1643938063612,0.06725539,37185.0,37181.0,0.24580709]
[1643938063811,0.06725539,37185.0,37181.0,0.24644774]
[1643938064813,0.06725539,37185.0,37181.0,0.24580709]
[1643938065012,0.06725539,37185.0,37181.0,0.24644774]
[1643938066015,0.06725539,37185.0,37181.0,0.24580709]
[1643938066217,0.06725539,37185.0,37181.0,0.24644774]
[1643938067215,0.06725539,37185.0,37181.0,0.24580709]
[1643938067450,0.06725539,37185.0,37181.0,0.24644792]
[1643938068451,0.06725539,37185.0,37181.0,0.24580709]
[1643938068651,0.06725539,37185.0,37181.0,0.24644792]
[1643938069652,0.06725539,37185.0,37181.0,0.24580709]
[1643938069851,0.06725539,37185.0,37181.0,0.24644792]
[1643938070855,0.06725539,37185.0,37181.0,0.24580709]
[1643938071121,0.06725539,37185.0,37181.0,0.24644788]
[1643938071925,0.06725539,37185.0,37181.0,0.24580709]
[1643938072224,0.06725539,37185.0,37181.0,0.24644788]
[1643938073225,0.06725539,37185.0,37181.0,0.24580709]
[1643938073423,0.06725539,37185.0,37181.0,0.24644788]
[1643938074424,0.06725539,37185.0,37181.0,0.24580709]
[1643938074624,0.06725539,37185.0,37181.0,0.31369988]
[1643938075656,0.06725539,37185.0,37181.0,0.31305909]
[1643938075857,0.06725539,37185.0,37181.0,0.31369988]
[1643938076056,0.06725539,37185.0,37181.0,0.24644788]
[1643938076858,0.06725539,37185.0,37181.0,0.24580709]
[1643938077058,0.06725539,37185.0,37181.0,0.24644788]
[1643938078058,0.06725539,37185.0,37181.0,0.24580709]
[1643938078258,0.06725539,37185.0,37181.0,0.24644788]
[1643938078708,0.00071554,37186.0,37181.0,0.31369988]
[1643938079308,0.1172495,37187.0,37181.0,0.31305909]
[1643938079509,0.00071555,37186.0,37181.0,0.31369988]
[1643938080511,0.1172495,37187.0,37181.0,0.31305909]
[1643938080811,0.00071555,37186.0,37181.0,0.31390487]
[1643938081011,0.00071555,37186.0,37183.0,0.19944989]
[1643938081212,0.00071555,37186.0,37185.0,0.27054041]
[1643938081611,0.23090872,37190.0,37185.0,1.07054041]
[1643938081811,0.00071555,37187.0,37185.0,1.07054041]
[1643938082456,0.00071555,37187.0,37186.0,1.2]
[1643938082857,0.04143382,37190.0,37187.0,0.23195166]
[1643938083055,0.00071554,37188.0,37187.0,0.23195166]
[1643938083955,0.04143382,37190.0,37187.0,0.23195166]
[1643938084157,0.35333054,37189.0,37187.0,0.23195166]
[1643938085158,0.352615,37189.0,37187.0,0.23195166]
[1643938085356,0.04214936,37190.0,37187.0,0.23195166]
[1643938085758,0.352615,37189.0,37187.0,0.23195166]
[1643938086210,0.41985995,37189.0,37187.0,0.23195166]
[1643938086610,0.06724495,37189.0,37187.0,0.23195166]
[1643938086810,0.09214936,37190.0,37187.0,0.23195166]
[1643938087012,0.09177937,37190.0,37187.0,0.23195166]
[1643938087410,0.41986032,37189.0,37187.0,0.23195166]
[1643938088211,0.41986032,37189.0,37187.0,0.14668649]
[1643938088411,0.06724532,37189.0,37187.0,0.14668649]
[1643938088613,0.09214935,37190.0,37187.0,0.14668649]
[1643938088816,0.09106383,37190.0,37187.0,0.14668649]
[1643938089111,0.09177937,37190.0,37187.0,0.14668649]
[1643938089309,0.352615,37189.0,37187.0,0.14668649]
[1643938089710,0.09214936,37190.0,37187.0,0.14668649]
[1643938089955,0.09214936,37190.0,37187.0,0.21392649]
[1643938089956,0.09143382,37190.0,37187.0,0.21392649]
[1643938090154,0.09143382,37190.0,37188.0,0.23532629]
[1643938090155,0.04177936,37190.0,37188.0,0.23532629]
[1643938090362,0.04177936,37190.0,37189.0,1.35]
[1643938091155,0.04106383,37190.0,37189.0,1.35]
[1643938092155,0.00071553,37191.0,37189.0,1.4038]
[1643938092355,0.00036999,37195.0,37190.0,1.02459359]
[1643938092555,0.00071553,37192.0,37191.0,0.36024278]
[1643938092754,0.22453317,37196.0,37192.0,1.05]
[1643938092959,0.00036999,37195.0,37192.0,1.05]
[1643938093156,0.00036999,37195.0,37191.0,0.36024278]
[1643938093355,0.48752024,37196.0,37191.0,0.36024278]
[1643938093610,0.22453317,37196.0,37193.0,0.2976068]
[1643938093813,0.22490316,37196.0,37193.0,0.2976068]
[1643938094011,0.22490316,37196.0,37192.0,0.067232]
[1643938094211,0.22490316,37196.0,37192.0,0.30247897]
[1643938094412,0.00036999,37196.0,37192.0,0.067232]
[1643938094612,0.26616834,37197.0,37192.0,0.067232]
[1643938094911,0.26653833,37197.0,37192.0,0.067232]
[1643938095114,0.00052388,37196.0,37192.0,0.067232]
[1643938095311,0.00089387,37196.0,37192.0,0.067232]
[1643938096214,0.00112927,37196.0,37192.0,0.067232]
[1643938097215,0.00036999,37196.0,37192.0,0.067232]
[1643938097460,0.00075928,37196.0,37192.0,0.067232]
[1643938097864,0.00112927,37196.0,37192.0,0.067232]
[1643938098461,0.00036999,37196.0,37192.0,0.067232]
[1643938098661,0.00075928,37196.0,37192.0,0.30016738]
[1643938098861,0.00112927,37196.0,37192.0,0.30016738]
[1643938100761,0.00036999,37196.0,37192.0,0.30016738]
[1643938100962,0.00075928,37196.0,37192.0,0.30016738]
[1643938101206,0.00075928,37196.0,37192.0,0.067232]
[1643938101407,0.00112927,37196.0,37192.0,0.067232]
[1643938102015,0.00036999,37196.0,37192.0,0.067232]
[1643938102212,0.00036999,37196.0,37192.0,0.30269078]
[1643938102213,0.00075928,37196.0,37192.0,0.30269078]
[1643938102609,0.00112927,37196.0,37192.0,0.30269078]
[1643938103309,0.00112927,37196.0,37192.0,0.067232]
[1643938103310,0.00036999,37196.0,37192.0,0.067232]
[1643938103511,0.00036999,37196.0,37189.0,0.134461]
[1643938103512,0.58323729,37195.0,37189.0,0.134461]
[1643938103715,0.35166667,37195.0,37187.0,0.0049]
[1643938103913,0.50203666,37195.0,37187.0,0.0049]
[1643938104113,0.23062229,37194.0,37187.0,0.0049]
[1643938104314,0.19731684,37191.0,37187.0,0.0049]
[1643938104511,0.19731684,37191.0,37186.0,0.1181]
[1643938104712,0.19768683,37191.0,37186.0,0.00075943]
[1643938105561,0.19768683,37191.0,37184.0,0.2540957]
[1643938105765,0.19768683,37191.0,37186.0,0.0007594]
[1643938105766,0.3475759,37191.0,37186.0,0.0007594]
[1643938106262,0.4148234,37191.0,37186.0,0.0007594]
[1643938106865,0.3475759,37191.0,37183.0,0.59020944]
[1643938107068,0.3475759,37191.0,37186.0,0.0007594]
[1643938107466,0.06724805,37189.0,37186.0,0.0007594]
[1643938108066,0.06724805,37189.0,37183.0,0.59020944]
[1643938108268,0.06724805,37189.0,37186.0,0.00075939]
[1643938109205,0.06724805,37189.0,37183.0,0.59020944]
[1643938109406,0.06724805,37189.0,37186.0,0.00075939]
[1643938110407,0.06724805,37189.0,37184.0,0.067246]
[1643938110607,0.06724805,37189.0,37186.0,0.00075939]
[1643938111607,0.06724805,37189.0,37184.0,0.067247]
[1643938111807,0.06724805,37189.0,37186.0,0.00075939]
[1643938112861,0.06724805,37189.0,37184.0,0.067247]
[1643938113160,0.06724805,37189.0,37186.0,0.00075939]
[1643938113959,0.06724805,37189.0,37186.0,0.067243]
[1643938114159,0.06724805,37189.0,37186.0,0.06800239]
[1643938114361,0.06724805,37189.0,37186.0,0.00075939]
[1643938115259,0.06724805,37189.0,37183.0,0.82648124]
[1643938115460,0.06724805,37189.0,37186.0,0.00075939]
[1643938115662,0.06724805,37189.0,37186.0,0.00067196]
[1643938116506,0.06724805,37189.0,37184.0,0.067247]
[1643938117807,0.06724805,37189.0,37185.0,0.00075933]
[1643938118209,0.35896036,37192.0,37191.0,0.0008814]
[1643938118411,0.96586327,37192.0,37185.0,0.00075933]
[1643938118609,0.61324827,37192.0,37185.0,0.00075933]
[1643938118811,0.61324827,37192.0,37184.0,0.067247]
[1643938119010,0.61324827,37192.0,37186.0,0.00075933]
[1643938119412,0.06724805,37189.0,37186.0,0.00075933]
[1643938120054,0.06724805,37189.0,37184.0,0.067247]
[1643938120254,0.06724805,37189.0,37186.0,0.00075933]
[1643938120856,0.134495,37192.0,37186.0,0.06800333]
[1643938121058,0.0679963,37193.0,37190.0,0.32145011]
[1643938121256,0.06723713,37193.0,37190.0,0.32145011]
[1643938121457,0.06799633,37193.0,37190.0,0.32145011]
[1643938121656,0.352615,37192.0,37190.0,0.32145011]
[1643938121857,0.352615,37192.0,37190.0,0.59658676]
[1643938122058,0.06799633,37193.0,37190.0,0.59658676]
[1643938122458,0.06723713,37193.0,37191.0,0.067235]
[1643938122658,0.06799636,37193.0,37191.0,0.067235]
[1643938123461,0.06799636,37193.0,37190.0,0.59658676]
[1643938123721,0.06723713,37193.0,37190.0,0.59658676]
[1643938126221,0.06799573,37193.0,37190.0,0.59658676]
[1643938127218,0.06723713,37193.0,37190.0,0.59658676]
[1643938127461,0.06799573,37193.0,37190.0,0.59658676]
[1643938128262,0.06799573,37193.0,37190.0,0.27513665]
[1643938128463,0.06723713,37193.0,37190.0,0.27513665]
[1643938128662,0.06799573,37193.0,37187.0,0.54453365]
[1643938128866,0.06799573,37193.0,37187.0,0.31127261]
[1643938129065,0.23073683,37192.0,37187.0,0.067242]
[1643938129264,0.23073683,37192.0,37187.0,0.30185895]
[1643938129566,0.23073683,37192.0,37187.0,0.2990708]
[1643938129964,0.29873254,37193.0,37188.0,0.28309252]
[1643938130165,0.23073683,37192.0,37188.0,0.28309252]
[1643938131436,0.23073683,37191.0,37186.0,0.05075873]
[1643938131732,0.29798577,37191.0,37186.0,0.05075873]
[1643938132131,0.29798577,37191.0,37186.0,0.05]
[1643938132333,0.2108228,37188.0,37186.0,0.05075871]
[1643938132533,0.2780742,37188.0,37186.0,0.05075871]
[1643938132735,0.2780742,37188.0,37186.0,0.00075871]
[1643938133338,0.2780742,37188.0,37184.0,0.42988451]
[1643938133634,0.2780742,37188.0,37185.0,0.0007587]
[1643938134137,0.50881103,37188.0,37185.0,0.0007587]
[1643938134534,0.23073683,37187.0,37182.0,0.00020499]
[1643938134734,0.23073683,37187.0,37185.0,0.00075871]
[1643938134735,1.002615,37186.0,37185.0,0.00075871]
[1643938134974,1.24253306,37186.0,37185.0,0.00075871]
[1643938135672,0.06725985,37185.0,37180.0,0.00020499]
[1643938135872,0.06725985,37185.0,37184.0,0.00075871]
[1643938136074,0.41987485,37185.0,37184.0,0.00075871]
[1643938136875,0.06725985,37185.0,37180.0,0.00020499]
[1643938137078,0.06725985,37185.0,37183.0,0.00075872]
[1643938137277,0.352615,37184.0,37183.0,0.00075872]
[1643938137476,0.06725985,37185.0,37183.0,0.00075872]
[1643938137977,0.06725985,37185.0,37180.0,0.00020499]
[1643938138179,0.06725985,37185.0,37182.0,0.00075872]
[1643938138608,0.06725985,37185.0,37182.0,0.00067446]
[1643938139311,0.06725985,37185.0,37180.0,0.00020499]
[1643938139508,0.06725985,37185.0,37179.0,0.57866713]
[1643938139509,0.06725985,37185.0,37179.0,0.57887212]
[1643938139708,0.11725985,37185.0,37179.0,0.57887212]
[1643938140711,0.11725985,37185.0,37180.0,0.00023638]
[1643938140911,0.11725985,37185.0,37180.0,0.00044137]
[1643938141610,0.11725985,37185.0,37180.0,0.00020499]
[1643938141817,0.11725985,37185.0,37181.0,0.00075867]
[1643938142015,0.11725985,37185.0,37182.0,0.36436333]
[1643938142362,0.11725985,37185.0,37182.0,0.64773023]
[1643938142563,0.11725985,37185.0,37182.0,0.64793522]
[1643938142764,0.11725985,37185.0,37182.0,0.65436207]
[1643938142964,0.11725985,37185.0,37182.0,0.65512073]
[1643938143162,0.11725985,37185.0,37182.0,0.48257698]
[1643938143962,0.11725985,37185.0,37182.0,0.48181832]
[1643938144163,0.11725985,37185.0,37182.0,0.48257698]
[1643938144366,0.11725985,37185.0,37182.0,0.71326227]
[1643938144566,0.11725985,37185.0,37182.0,0.48257698]
[1643938144765,0.06725985,37185.0,37184.0,0.05]
[1643938146919,0.06725985,37185.0,37184.0,0.28749069]
[1643938148218,0.20175045,37190.0,37184.0,0.28749069]
[1643938148419,0.43244088,37190.0,37184.0,0.28076358]
[1643938148619,0.48244088,37190.0,37186.0,0.05]
[1643938148822,0.71481653,37190.0,37186.0,0.05]
[1643938149022,0.06724448,37189.0,37185.0,0.067245]
[1643938149224,0.29793491,37189.0,37184.0,0.05]